fUSD/lending_fUSD_20240919
["ID","MTS","AMOUNT","RATE_DAILY","PERIOD"]
[338541731,1726726247155,-500.0,0.00013168,2]
[338541732,1726726247164,-2159.79,0.00013168,2]
[338541733,1726726247176,-500.0,0.00013168,2]
[338541734,1726726247185,-1118.45,0.00013168,2]
[338541735,1726726247195,-500.0,0.00013168,2]
[338541736,1726726247204,-500.0,0.00013168,2]
[338541737,1726726247213,-500.0,0.00013168,2]
[338541738,1726726247223,-3265.76,0.00013168,2]
[338541739,1726726247233,-500.0,0.00013168,2]
[338541740,1726726247243,-3331.94,0.00013168,2]
[338541741,1726726247254,-500.0,0.00013168,2]
[338541742,1726726247263,-806.59,0.00013168,2]
[338541743,1726726247273,-500.0,0.00013168,2]
[338541744,1726726247282,-3132.86,0.00013168,2]
[338541745,1726726247292,-630.58,0.00013168,2]
[338541746,1726726247302,-1453.42,0.00013168,2]
[338541747,1726726247311,-878.15,0.00013168,2]
[338541748,1726726247321,-500.0,0.00013168,2]
[338541749,1726726247330,-500.0,0.00013168,2]
[338541750,1726726247339,-1061.58,0.00013168,2]
[338541751,1726726247349,-500.0,0.00013168,2]
[338541752,1726726247359,-500.0,0.00013168,2]
[338541753,1726726247368,-1028.91,0.00013168,2]
[338541754,1726726247378,-500.0,0.00013168,2]
[338541755,1726726247387,-500.0,0.00013168,2]
[338541756,1726726247397,-500.0,0.00013168,2]
[338541757,1726726247406,-500.0,0.00013168,2]
[338541758,1726726247415,-500.0,0.00013168,2]
[338541759,1726726247424,-989.29,0.00013168,2]
[338541760,1726726247434,-500.0,0.00013168,2]
[338541761,1726726247443,-500.0,0.00013168,2]
[338541762,1726726247453,-500.0,0.00013168,2]
[338541763,1726726247462,-500.0,0.00013168,2]
[338541764,1726726247471,-500.0,0.00013169,2]
[338541765,1726726247481,-802.51,0.00013169,2]
[338541766,1726726247490,-500.0,0.00013169,2]
[338541767,1726726247500,-815.7,0.00013169,2]
[338541768,1726726247509,-1292.07,0.00013169,2]
[338541769,1726726247518,-500.0,0.00013169,2]
[338541770,1726726247528,-521.87,0.00013169,2]
[338541771,1726726247537,-500.0,0.00013169,2]
[338541772,1726726247546,-858.77,0.00013169,2]
[338541773,1726726247556,-500.0,0.00013169,2]
[338541774,1726726247566,-500.0,0.00013169,2]
[338541775,1726726247575,-613.1,0.00013169,2]
[338541776,1726726247585,-500.0,0.00013169,2]
[338541777,1726726247595,-566.63774415,0.00013169,2]
[338541778,1726726247605,-500.0,0.00013169,2]
[338541779,1726726247615,-500.0,0.00013169,2]
[338541780,1726726247624,-500.0,0.00013169,2]
[338541781,1726726247634,-500.0,0.00013169,2]
[338541782,1726726247643,-500.0,0.00013169,2]
[338541783,1726726247653,-599.1,0.00013169,2]
[338541784,1726726247662,-500.0,0.00013169,2]
[338541785,1726726247672,-654.52,0.00013169,2]
[338541786,1726726247681,-500.0,0.00013169,2]
[338541787,1726726247691,-500.0,0.00013169,2]
[338541788,1726726247700,-500.0,0.00013169,2]
[338541789,1726726247710,-215.86,0.00013169,2]
[338541790,1726726247719,-983.99,0.00013169,2]
[338541791,1726726247728,-500.0,0.00013169,2]
[338541792,1726726247737,-500.0,0.00013169,2]
[338541793,1726726247747,-500.0,0.00013169,2]
[338541794,1726726247756,-500.0,0.00013169,2]
[338541795,1726726247765,-751.25,0.00013169,2]
[338541796,1726726247774,-500.0,0.00013169,2]
[338541797,1726726247784,-500.0,0.00013169,2]
[338541798,1726726247793,-500.0,0.00013169,2]
[338541799,1726726247803,-500.0,0.00013169,2]
[338541800,1726726247812,-500.0,0.00013169,2]
[338541801,1726726247821,-897.92,0.00013169,2]
[338541802,1726726247830,-2171.2,0.00013169,2]
[338541803,1726726247839,-1976.64,0.00013169,2]
[338541804,1726726247848,-1541.26,0.00013169,2]
[338541805,1726726247858,-978.64,0.00013169,2]
[338541806,1726726247867,-500.0,0.00013169,2]
[338541807,1726726247876,-758.56,0.00013169,2]
[338541808,1726726247886,-500.0,0.00013169,2]
[338541809,1726726247895,-972.65,0.00013169,2]
[338541810,1726726247907,-500.0,0.00013169,2]
[338541811,1726726247918,-699.78,0.00013169,2]
[338541812,1726726247928,-500.0,0.00013169,2]
[338541813,1726726247937,-810.75,0.00013169,2]
[338541814,1726726247946,-589.94,0.00013169,2]
[338541815,1726726247955,-500.0,0.00013169,2]
[338541816,1726726247968,-731.77,0.00013169,2]
[338541817,1726726247980,-737.47,0.00013169,2]
[338541818,1726726247990,-500.0,0.00013169,2]
[338541819,1726726247999,-875.32,0.00013169,2]
[338541820,1726726248008,-500.0,0.00013169,2]
[338541821,1726726248017,-500.0,0.00013169,2]
[338541822,1726726248027,-2000.0,0.000132,2]
[338541823,1726726248036,-412.40296069,0.00013236,2]
[338541824,1726726248045,-2108.54500636,0.00013261,2]
[338541825,1726726248055,-178.85096945,0.00013272,2]
[338541826,1726726248064,-1000.0,0.00013273,2]
[338541827,1726726248073,-1000.0,0.00013273,2]
[338541828,1726726248082,-1000.0,0.00013273,2]
[338541829,1726726248092,-1000.0,0.00013273,2]
[338541830,1726726248113,-1030.26541306,0.00013273,2]
[338541831,1726726248122,-429.95,0.000133,2]
[338541832,1726726248132,-533.42,0.000133,2]
[338541833,1726726248142,-753.25,0.000133,2]
[338541834,1726726248151,-174.17734118,0.000134,2]
[338541835,1726726248160,-4213.96,0.0001344,2]
[338541836,1726726248170,-5371.56,0.0001344,2]
[338541837,1726726248180,-1044.14,0.0001344,2]
[338541838,1726726248190,-3226.68,0.0001344,2]
[338541839,1726726248199,-2003.73,0.0001344,2]
[338541840,1726726248209,-4301.42,0.0001344,2]
[338541841,1726726248219,-637.47,0.0001344,2]
[338541842,1726726248228,-2699.44,0.0001344,2]
[338541843,1726726248237,-3577.14,0.0001344,2]
[338541844,1726726248246,-9641.04,0.0001344,2]
[338541845,1726726248256,-500.0,0.0001344,2]
[338541846,1726726248266,-915.94,0.0001344,2]
[338541847,1726726248275,-500.0,0.0001344,2]
[338541848,1726726248286,-6308.27,0.0001344,2]
[338541849,1726726248295,-151.0,0.0001344,2]
[338541850,1726726248304,-4131.7,0.0001344,2]
[338541851,1726726248314,-1347.94,0.0001344,2]
[338541852,1726726248323,-1656.47,0.0001344,2]
[338541853,1726726248333,-2762.8,0.0001344,2]
[338541854,1726726248346,-603.23,0.0001344,2]
[338541855,1726726248355,-1185.65,0.0001344,2]
[338541856,1726726248365,-505.53,0.0001344,2]
[338541857,1726726248375,-2674.11,0.0001344,2]
[338541858,1726726248384,-500.0,0.0001344,2]
[338541859,1726726248392,-500.0,0.0001344,2]
[338541860,1726726248400,-744.96,0.0001344,2]
[338541861,1726726248409,-866.61,0.0001344,2]
[338541862,1726726248417,-614.78,0.0001344,2]
[338541863,1726726248425,-976.25,0.0001344,2]
[338541864,1726726248434,-3721.98,0.0001344,2]
[338541865,1726726248443,-10000.0,0.0001344,2]
[338541866,1726726248452,-151.0,0.00013441,2]
[338541867,1726726248461,-500.0,0.00013441,2]
[338541868,1726726248470,-500.0,0.00013441,2]
[338541869,1726726248479,-1201.98,0.00013441,2]
[338541870,1726726248488,-500.0,0.00013441,2]
[338541871,1726726248497,-500.0,0.00013441,2]
[338541872,1726726248507,-500.0,0.00013441,2]
[338541873,1726726248516,-500.0,0.00013441,2]
[338541874,1726726248525,-512.57,0.00013441,2]
[338541875,1726726248534,-500.0,0.00013441,2]
[338541876,1726726248543,-558.96,0.00013441,2]
[338541877,1726726248552,-2161.61,0.00013441,2]
[338541878,1726726248562,-222.03390505,0.00013441,2]
[338541879,1726726248571,-586.54,0.00013441,2]
[338541880,1726726248580,-634.58,0.00013441,2]
[338541881,1726726248589,-1310.5,0.00013441,2]
[338541882,1726726248600,-1721.59,0.00013441,2]
[338541883,1726726248609,-775.65,0.00013441,2]
[338541884,1726726248619,-857.42,0.00013441,2]
[338541885,1726726248628,-500.0,0.00013441,2]
[338541886,1726726248637,-2270.05,0.00013441,2]
[338541887,1726726248647,-2169.17,0.00013441,2]
[338541888,1726726248656,-1194.74,0.00013441,2]
[338541889,1726726248665,-500.0,0.00013441,2]
[338541890,1726726248674,-500.0,0.00013441,2]
[338541891,1726726248684,-500.0,0.00013441,2]
[338541892,1726726248694,-500.0,0.00013441,2]
[338541893,1726726248702,-735.02,0.00013441,2]
[338541894,1726726248711,-504.31,0.00013441,2]
[338541895,1726726248721,-1540.64,0.00013441,2]
[338541896,1726726248730,-500.0,0.00013441,2]
[338541897,1726726248740,-3526.32,0.00013441,2]
[338541898,1726726248749,-500.0,0.00013441,2]
[338541899,1726726248758,-1017.05,0.00013441,2]
[338541900,1726726248768,-967.26,0.00013441,2]
[338541901,1726726248777,-743.3,0.00013441,2]
[338541902,1726726248786,-500.0,0.00013441,2]
[338541903,1726726248796,-278.64661376,0.00013441,2]
[338541904,1726726248805,-1402.77,0.00013441,2]
[338541905,1726726248814,-500.0,0.00013441,2]
[338541906,1726726248826,-500.0,0.00013441,2]
[338541907,1726726248835,-2438.56,0.00013441,2]
[338541908,1726726248851,-1199.42,0.00013441,2]
[338541909,1726726248861,-1805.28,0.00013441,2]
[338541910,1726726248870,-500.0,0.00013441,2]
[338541911,1726726248880,-544.81,0.00013441,2]
[338541912,1726726248889,-562.56,0.00013441,2]
[338541913,1726726248898,-500.0,0.00013441,2]
[338541914,1726726248907,-1458.08,0.00013441,2]
[338541915,1726726248916,-500.0,0.00013441,2]
[338541916,1726726248925,-532.66,0.00013441,2]
[338541917,1726726248935,-526.98,0.00013441,2]
[338541918,1726726248944,-500.0,0.00013441,2]
[338541919,1726726248953,-500.0,0.00013441,2]
[338541920,1726726248962,-542.11,0.00013441,2]
[338541921,1726726248971,-500.0,0.00013441,2]
[338541922,1726726248980,-1725.83,0.00013441,2]
[338541923,1726726248990,-947.81,0.00013441,2]
[338541924,1726726248999,-959.06,0.00013441,2]
[338541925,1726726249008,-1438.42,0.00013441,2]
[338541926,1726726249017,-500.0,0.00013441,2]
[338541927,1726726249026,-1603.04,0.00013441,2]
[338541928,1726726249036,-500.0,0.00013441,2]
[338541929,1726726249045,-467.5,0.00013441,2]
[338541930,1726726249055,-509.88,0.00013441,2]
[338541931,1726726249064,-869.39,0.00013441,2]
[338541932,1726726249074,-500.0,0.00013441,2]
[338541933,1726726249083,-500.0,0.00013441,2]
[338541934,1726726249094,-1537.55,0.00013441,2]
[338541935,1726726249105,-872.94,0.00013441,2]
[338541936,1726726249114,-500.0,0.00013441,2]
[338541937,1726726249124,-721.03,0.00013441,2]
[338541938,1726726249133,-1632.1,0.00013441,2]
[338541939,1726726249142,-500.0,0.00013441,2]
[338541940,1726726249151,-624.03,0.00013441,2]
[338541941,1726726249161,-500.0,0.00013441,2]
[338541942,1726726249171,-151.0,0.00013441,2]
[338541943,1726726249182,-500.0,0.00013441,2]
[338541944,1726726249192,-823.62,0.00013441,2]
[338541945,1726726249202,-500.0,0.00013441,2]
[338541946,1726726249211,-500.0,0.00013441,2]
[338541947,1726726249221,-500.0,0.00013441,2]
[338541948,1726726249231,-1347.1,0.00013441,2]
[338541949,1726726249242,-500.0,0.00013441,2]
[338541950,1726726249251,-1061.37,0.00013441,2]
[338541951,1726726249261,-915.08,0.00013441,2]
[338541952,1726726249271,-500.0,0.00013441,2]
[338541953,1726726249280,-500.0,0.00013441,2]
[338541954,1726726249290,-500.0,0.00013441,2]
[338541955,1726726249299,-193.30715111,0.00013441,2]
[338541956,1726726249309,-1882.9,0.00013441,2]
[338541957,1726726249318,-500.0,0.00013441,2]
[338541958,1726726249328,-500.0,0.00013441,2]
[338541959,1726726249338,-500.0,0.00013441,2]
[338541960,1726726249348,-629.21,0.00013441,2]
[338541961,1726726249357,-570.22,0.00013441,2]
[338541962,1726726249367,-1302.03,0.00013441,2]
[338541963,1726726249377,-500.0,0.00013441,2]
[338541964,1726726249387,-500.0,0.00013441,2]
[338541965,1726726249396,-500.0,0.00013441,2]
[338541966,1726726249406,-1111.24,0.00013441,2]
[338541967,1726726249529,-1004.44,0.00013441,2]
[338541968,1726726249539,-500.0,0.00013441,2]
[338541969,1726726249549,-1249.44,0.00013441,2]
[338541970,1726726249558,-1668.61,0.00013441,2]
[338541971,1726726249568,-500.0,0.00013441,2]
[338541972,1726726249578,-500.0,0.00013441,2]
[338541973,1726726249587,-151.0,0.00013441,2]
[338541974,1726726249600,-500.0,0.00013441,2]
[338541975,1726726249610,-1484.77,0.00013441,2]
[338541976,1726726249620,-1349.5,0.00013441,2]
[338541977,1726726249630,-500.0,0.00013441,2]
[338541978,1726726249640,-500.06,0.00013441,2]
[338541979,1726726249649,-151.0,0.00013441,2]
[338541980,1726726249659,-640.31,0.00013441,2]
[338541981,1726726249669,-1765.5,0.00013441,2]
[338541982,1726726249678,-852.28,0.00013441,2]
[338541983,1726726249687,-671.43,0.00013441,2]
[338541984,1726726249697,-1741.55,0.00013441,2]
[338541985,1726726249706,-500.0,0.00013441,2]
[338541986,1726726249716,-519.69,0.00013441,2]
[338541987,1726726249725,-802.29,0.00013441,2]
[338541988,1726726249735,-500.0,0.00013441,2]
[338541989,1726726249745,-500.0,0.00013441,2]
[338541990,1726726249755,-1105.83,0.00013441,2]
[338541991,1726726249765,-868.76,0.00013441,2]
[338541992,1726726249774,-500.0,0.00013441,2]
[338541993,1726726249783,-511.05,0.00013441,2]
[338541994,1726726249793,-1741.26,0.00013441,2]
[338541995,1726726249803,-500.0,0.00013441,2]
[338541996,1726726249812,-500.0,0.00013441,2]
[338541997,1726726249822,-1797.8,0.00013441,2]
[338541998,1726726249831,-500.0,0.00013441,2]
[338541999,1726726249841,-1021.57,0.00013441,2]
[338542000,1726726249851,-1011.08,0.00013441,2]
[338542001,1726726249861,-621.3,0.00013441,2]
[338542002,1726726249870,-500.0,0.00013441,2]
[338542003,1726726249879,-514.67,0.00013441,2]
[338542004,1726726249890,-500.0,0.00013441,2]
[338542005,1726726249899,-500.0,0.00013441,2]
[338542006,1726726249908,-500.0,0.00013441,2]
[338542007,1726726249919,-500.0,0.00013441,2]
[338542008,1726726249930,-500.0,0.00013441,2]
[338542009,1726726249940,-1994.54,0.00013441,2]
[338542010,1726726249951,-500.0,0.00013441,2]
[338542011,1726726249960,-2727.27,0.00013441,2]
[338542012,1726726249971,-888.01,0.00013441,2]
[338542013,1726726249980,-500.0,0.00013441,2]
[338542014,1726726249992,-583.36,0.00013441,2]
[338542015,1726726250002,-972.0,0.00013441,2]
[338542016,1726726250011,-152.078511,0.00013441,2]
[338542017,1726726250022,-500.0,0.00013441,2]
[338542018,1726726250031,-1153.94,0.00013441,2]
[338542019,1726726250040,-500.0,0.00013441,2]
[338542020,1726726250050,-2844.2,0.00013441,2]
[338542021,1726726250059,-1137.49,0.00013441,2]
[338542022,1726726250069,-612.93,0.00013441,2]
[338542023,1726726250079,-1447.1,0.00013441,2]
[338542024,1726726250088,-1311.45,0.00013441,2]
[338542025,1726726250102,-396.34879099,0.00013441,2]
[338542026,1726726250112,-1309.73,0.00013441,2]
[338542027,1726726250122,-1373.59,0.00013441,2]
[338542028,1726726250131,-648.83,0.00013441,2]
[338542029,1726726250141,-500.0,0.00013441,2]
[338542030,1726726250151,-2185.77,0.00013441,2]
[338542031,1726726250160,-745.47,0.00013441,2]
[338542032,1726726250170,-151.0,0.00013441,2]
[338542033,1726726250181,-2526.57,0.00013441,2]
[338542034,1726726250191,-780.4,0.00013441,2]
[338542035,1726726250200,-703.21,0.00013441,2]
[338542036,1726726250209,-2352.46,0.00013441,2]
[338542037,1726726250219,-617.37,0.00013441,2]
[338542038,1726726250229,-500.0,0.00013441,2]
[338542039,1726726250239,-758.69,0.00013441,2]
[338542040,1726726250248,-980.72,0.00013441,2]
[338542041,1726726250258,-1192.44,0.00013441,2]
[338542042,1726726250268,-606.78,0.00013441,2]
[338542043,1726726250278,-1532.45,0.00013441,2]
[338542044,1726726250287,-500.0,0.00013441,2]
[338542045,1726726250297,-500.0,0.00013441,2]
[338542046,1726726250306,-500.0,0.00013441,2]
[338542047,1726726250316,-4696.05,0.00013441,2]
[338542048,1726726250325,-568.98,0.00013441,2]
[338542049,1726726250335,-671.48,0.00013441,2]
[338542050,1726726250344,-570.68,0.00013441,2]
[338542051,1726726250353,-500.0,0.00013441,2]
[338542052,1726726250363,-500.0,0.00013441,2]
[338542053,1726726250372,-500.0,0.00013441,2]
[338542054,1726726250381,-500.0,0.00013441,2]
[338542055,1726726250391,-739.77,0.00013441,2]
[338542056,1726726250400,-500.0,0.00013441,2]
[338542057,1726726250409,-1868.37,0.00013441,2]
[338542058,1726726250419,-500.0,0.00013441,2]
[338542059,1726726250428,-151.0,0.00013441,2]
[338542060,1726726250437,-500.0,0.00013441,2]
[338542061,1726726250447,-750.04,0.00013441,2]
[338542062,1726726250456,-15085.63,0.00013441,2]
[338542063,1726726250465,-500.0,0.00013441,2]
[338542064,1726726250474,-500.0,0.00013441,2]
[338542065,1726726250484,-3366.08,0.00013441,2]
[338542066,1726726250493,-500.0,0.00013441,2]
[338542067,1726726250503,-1209.7,0.00013441,2]
[338542068,1726726250512,-1242.69,0.00013441,2]
[338542069,1726726250524,-500.0,0.00013441,2]
[338542070,1726726250534,-521.27,0.00013441,2]
[338542071,1726726250544,-500.0,0.00013441,2]
[338542072,1726726250555,-500.0,0.00013441,2]
[338542073,1726726250566,-500.0,0.00013441,2]
[338542074,1726726250577,-1446.6,0.00013441,2]
[338542075,1726726250587,-500.0,0.00013441,2]
[338542076,1726726250598,-755.19,0.00013441,2]
[338542077,1726726250607,-500.0,0.00013441,2]
[338542078,1726726250617,-500.0,0.00013441,2]
[338542079,1726726250626,-33358.28,0.00013441,2]
[338542080,1726726250635,-1655.08,0.00013441,2]
[338542081,1726726250644,-672.35,0.00013441,2]
[338542082,1726726250653,-500.0,0.00013441,2]
[338542083,1726726250663,-500.0,0.00013441,2]
[338542084,1726726250672,-500.0,0.00013441,2]
[338542085,1726726250681,-2410.84,0.00013441,2]
[338542086,1726726250691,-151.0,0.00013441,2]
[338542087,1726726250700,-500.0,0.00013441,2]
[338542088,1726726250709,-789.21,0.00013441,2]
[338542089,1726726250719,-500.0,0.00013441,2]
[338542090,1726726250728,-500.0,0.00013441,2]
[338542091,1726726250738,-3611.03,0.00013441,2]
[338542092,1726726250747,-959.36,0.00013441,2]
[338542093,1726726250756,-500.0,0.00013441,2]
[338542094,1726726250766,-912.5823668,0.00013441,2]
[338542095,1726726251186,-687.6676332,0.00013441,2]
[338542096,1726726251197,-500.0,0.00013441,2]
[338542097,1726726251207,-880.72,0.00013441,2]
[338542098,1726726251217,-500.0,0.00013441,2]
[338542099,1726726251226,-583.52,0.00013441,2]
[338542100,1726726251235,-500.0,0.00013441,2]
[338542101,1726726251244,-2984.99,0.00013441,2]
[338542102,1726726251254,-4554.46,0.00013441,2]
[338542103,1726726251263,-500.0,0.00013441,2]
[338542104,1726726251273,-1342.15,0.00013441,2]
[338542105,1726726251283,-500.0,0.00013441,2]
[338542106,1726726251292,-558.56,0.00013441,2]
[338542107,1726726251301,-2868.83,0.00013441,2]
[338542108,1726726251310,-3490.59,0.00013441,2]
[338542109,1726726251319,-960.58,0.00013441,2]
[338542110,1726726251328,-1259.38,0.00013441,2]
[338542111,1726726251337,-500.0,0.00013441,2]
[338542112,1726726251349,-500.0,0.00013441,2]
[338542113,1726726251366,-951.69,0.00013441,2]
[338542114,1726726251375,-500.0,0.00013441,2]
[338542115,1726726251384,-561.86,0.00013441,2]
[338542116,1726726251393,-8000.47,0.00013441,2]
[338542117,1726726251402,-828.93,0.00013441,2]
[338542118,1726726251411,-410.44,0.00013441,2]
[338542119,1726726251421,-876.65,0.00013441,2]
[338542120,1726726251431,-4940.81,0.00013441,2]
[338542121,1726726251440,-500.0,0.00013441,2]
[338542122,1726726251449,-500.0,0.00013441,2]
[338542123,1726726251459,-875.12,0.00013441,2]
[338542124,1726726251468,-1531.27,0.00013441,2]
[338542125,1726726251477,-1045.53,0.00013441,2]
[338542126,1726726251759,-4934.78,0.00013441,2]
[338542127,1726726251827,-1968.35,0.00013441,2]
[338542128,1726726251837,-500.0,0.00013441,2]
[338542129,1726726251849,-500.0,0.00013441,2]
[338542130,1726726251859,-305.71,0.00013441,2]
[338542131,1726726251869,-527.69,0.00013441,2]
[338542132,1726726251879,-818.34,0.00013441,2]
[338542133,1726726251888,-500.0,0.00013441,2]
[338542134,1726726251898,-3041.37,0.00013441,2]
[338542135,1726726251908,-633.53,0.00013441,2]
[338542136,1726726251917,-1306.46,0.00013441,2]
[338542137,1726726251927,-1697.53,0.00013441,2]
[338542138,1726726251938,-500.0,0.00013441,2]
[338542139,1726726251947,-2855.41,0.00013441,2]
[338542140,1726726251957,-500.0,0.00013441,2]
[338542141,1726726251966,-1051.76,0.00013441,2]
[338542142,1726726251976,-1066.5,0.00013441,2]
[338542143,1726726251986,-1339.52,0.00013441,2]
[338542144,1726726251996,-151.0,0.00013441,2]
[338542145,1726726252005,-2356.18,0.00013441,2]
[338542146,1726726252014,-1765.06,0.00013441,2]
[338542147,1726726252024,-506.17,0.00013441,2]
[338542148,1726726252035,-1423.16,0.00013441,2]
[338542149,1726726252045,-823.48,0.00013441,2]
[338542150,1726726252055,-500.0,0.00013441,2]
[338542151,1726726252065,-946.52,0.00013441,2]
[338542152,1726726252075,-500.0,0.00013441,2]
[338542153,1726726252085,-2012.58,0.00013441,2]
[338542154,1726726252096,-500.0,0.00013441,2]
[338542155,1726726252107,-673.3,0.00013441,2]
[338542156,1726726252117,-500.0,0.00013441,2]
[338542157,1726726252127,-500.0,0.00013441,2]
[338542158,1726726252136,-500.0,0.00013441,2]
[338542159,1726726252147,-2978.69,0.00013441,2]
[338542160,1726726252156,-693.84,0.00013441,2]
[338542161,1726726252166,-3072.66,0.00013441,2]
[338542162,1726726252177,-633.05,0.00013441,2]
[338542163,1726726252187,-1806.23,0.00013441,2]
[338542164,1726726252196,-1203.55,0.00013441,2]
[338542165,1726726252206,-878.4,0.00013441,2]
[338542166,1726726252215,-518.32,0.00013441,2]
[338542167,1726726252225,-1000.0,0.00013441,2]
[338542168,1726726252235,-579.58,0.00013441,2]
[338542169,1726726252245,-1413.6,0.00013441,2]
[338542170,1726726252255,-652.59,0.00013441,2]
[338542171,1726726252265,-1726.39,0.00013441,2]
[338542172,1726726252275,-500.0,0.00013441,2]
[338542173,1726726252285,-501.17,0.00013441,2]
[338542174,1726726252295,-1146.17,0.00013441,2]
[338542175,1726726252305,-1791.58,0.00013441,2]
[338542176,1726726252315,-2194.34,0.00013441,2]
[338542177,1726726252325,-1031.8,0.00013441,2]
[338542178,1726726252334,-1020.12,0.00013441,2]
[338542179,1726726252344,-859.05,0.00013441,2]
[338542180,1726726252354,-500.0,0.00013442,2]
[338542181,1726726252364,-1311.15,0.00013442,2]
[338542182,1726726252373,-725.52,0.00013442,2]
[338542183,1726726252383,-1025.01,0.00013442,2]
[338542184,1726726252393,-500.0,0.00013442,2]
[338542185,1726726252403,-1155.69,0.00013442,2]
[338542186,1726726252413,-999.15,0.00013442,2]
[338542187,1726726252422,-500.0,0.00013442,2]
[338542188,1726726252433,-500.0,0.00013442,2]
[338542189,1726726252443,-1678.98,0.00013442,2]
[338542190,1726726252452,-500.0,0.00013442,2]
[338542191,1726726252461,-629.03,0.00013442,2]
[338542192,1726726252471,-500.0,0.00013442,2]
[338542193,1726726252481,-1299.53,0.00013442,2]
[338542194,1726726252490,-897.93,0.00013442,2]
[338542195,1726726252501,-500.0,0.00013442,2]
[338542196,1726726252510,-500.0,0.00013442,2]
[338542197,1726726252520,-1690.14,0.00013442,2]
[338542198,1726726252530,-625.51,0.00013442,2]
[338542199,1726726252539,-500.0,0.00013442,2]
[338542200,1726726252549,-1431.49,0.00013442,2]
[338542201,1726726252558,-559.2,0.00013442,2]
[338542202,1726726252568,-500.0,0.00013442,2]
[338542203,1726726252578,-500.0,0.00013442,2]
[338542204,1726726252588,-500.0,0.00013442,2]
[338542205,1726726252599,-500.0,0.00013442,2]
[338542206,1726726252608,-500.0,0.00013442,2]
[338542207,1726726252618,-797.44,0.00013442,2]
[338542208,1726726252628,-711.73,0.00013442,2]
[338542209,1726726252638,-500.0,0.00013442,2]
[338542210,1726726252647,-500.0,0.00013442,2]
[338542211,1726726252657,-500.0,0.00013442,2]
[338542212,1726726252667,-577.66,0.00013442,2]
[338542213,1726726252676,-500.97,0.00013442,2]
[338542214,1726726252685,-500.0,0.00013442,2]
[338542215,1726726252695,-581.11,0.00013442,2]
[338542216,1726726252704,-1206.87,0.00013442,2]
[338542217,1726726252713,-623.23,0.00013442,2]
[338542218,1726726252723,-685.27,0.00013442,2]
[338542219,1726726252733,-1068.24,0.00013442,2]
[338542220,1726726252742,-959.9,0.00013442,2]
[338542221,1726726252752,-708.41,0.00013442,2]
[338542222,1726726252761,-500.0,0.00013442,2]
[338542223,1726726252771,-527.3,0.00013442,2]
[338542224,1726726252780,-500.0,0.00013442,2]
[338542225,1726726252792,-500.0,0.00013442,2]
[338542226,1726726252802,-500.0,0.00013442,2]
[338542227,1726726252812,-500.0,0.00013442,2]
[338542228,1726726252821,-1428.06,0.00013442,2]
[338542229,1726726252831,-500.0,0.00013442,2]
[338542230,1726726252842,-500.0,0.00013442,2]